Cogmind - Beta 17.1 @@@ ROGUE MODE // 2026.09.15 @ 04:29:44 Player: Solon Result: Destroyed by G-47 Trooper with Particle Gun Performance ------------- Evolutions (2) 1000 Regions Visited (3) 600 Robots Destroyed (65) 325 Value Destroyed (1572) 1572 Prototype IDs (4) 80 Alien Tech Used (0) 0 Bonus (16) 16 TOTAL SCORE: 3593 Bonus ------- High Alert Combat Kills 16 Cogmind --------- Core Integrity 0/550 Matter 300/300 Energy 100/100 System Corruption 1% Temperature Cool (9) Movement Core (50) Location -8/Materials Parts ------- > --- POWER (1) -------- (None) > --- PROPULSION (2) --- (None) > --- UTILITY (4) ------ (None) > --- WEAPON (4) ------- (None) > --- INVENTORY (5) ---- Light Deuterium Engine Light Deuterium Engine Light Deuterium Engine Peak State ------------ > --- POWER ------------ Light Deuterium Engine > --- PROPULSION ------- Compact Wheel Armored Wheel > --- UTILITY ---------- Small Storage Unit Improved Terrain Scanner Improved Terrain Scanner Medium Armor Plating > --- WEAPON ----------- Minigun Minigun > --- INVENTORY -------- Light Deuterium Engine Light Deuterium Engine [Rating: 21] Favorites ----------- Power Light Deuterium Engine Engine Light Deuterium Engine Propulsion Light Treads Treads Light Treads Leg Aluminum Leg Wheel Compact Wheel Hover Unit Hover Unit Utility Improved Terrain Scanner Device Improved Terrain Scanner Storage Small Storage Unit Processor Visual Processing Unit Protection Medium Armor Plating Weapon Minigun Energy Gun Medium Laser Energy Cannon Ion Cannon Ballistic Gun Minigun Build | -11 -10 -9 -8 ------- Run | Yrd Mat Mat Mat Slots Evolved 4 | . . 2 2 Power . | . . . . Propulsion . | . . . . Utility 2 | . . 2 . Weapon 2 | . . . 2 Parts Attached 41 | 7 8 24 2 Power 6 | 1 1 3 1 Engine 6 | 1 1 3 1 Core . | . . . . Reactor . | . . . . Propulsion 12 | 2 2 8 . Treads 3 | . . 3 . Leg 4 | 2 . 2 . Wheel 3 | . . 3 . Hover 2 | . 2 . . Flight . | . . . . Utility 12 | 2 2 8 . Device 5 | 1 . 4 . Storage 2 | 1 1 . . Processor 1 | . 1 . . Hackware . | . . . . Protection 4 | . . 4 . Artifact . | . . . . Weapon 11 | 2 3 5 1 Energy Gun 4 | 2 2 . . Energy Cannon 2 | . . 1 1 Ballistic Gun 5 | . 1 4 . Ballistic Cannon . | . . . . Launcher . | . . . . Special Weapon . | . . . . Impact Weapon . | . . . . Slashing Weapon . | . . . . Piercing Weapon . | . . . . Special Melee Weapon . | . . . . Unidentified Prototypes . | . . . . Parts Lost 22 | . 3 10 9 Power 3 | . 1 1 1 Propulsion 5 | . 1 2 2 Utility 8 | . . 5 3 Weapon 6 | . 1 2 3 Highest Loss Streak 9 | . 2 3 9 To Critical Strikes . | . . . . Average Backups 1 | . . 2 2 Power . | . . 1 2 Propulsion . | . . . . Utility . | . . . . Weapon . | . . . . Tool/Special . | . . . . Unused Backups 2 | . 1 . 1 Power 1 | . . . 1 Propulsion 1 | . 1 . . Utility . | . . . . Weapon . | . . . . Tool/Special . | . . . . Average Slot Usage (%) 84 | . 93 82 67 Engine 10 | . 12 10 8 Treads 6 | . . 7 14 Leg 4 | . 12 2 . Wheel 3 | . . 5 . Hover 4 | . 12 2 . Device 13 | . 14 13 8 Storage 11 | . 13 11 9 Protection 6 | . . 8 7 Energy Gun 5 | . 23 . . Ballistic Gun 15 | . 2 20 15 Peak Build Rating 21 | 9 10 21 19 Average Rating 14 | 5 8 16 15 On Entrance 7 | . 9 6 16 Avg Prop Armor Cover (%) . | . . . . Naked Turns 9 | . . . 9 Heaviest Build 88 | 13 88 26 30 Greatest Support 40 | 20 20 40 40 Greatest Overweight (x) 8 | . 4 8 7 Average Overweight (x) . | . . . . Largest Inventory Capacity 25 | 8 25 8 8 Average Capacity 7 | 6 8 8 7 Most Carried 6 | 2 1 6 4 Average Carried 1 | . . 2 2 Final Capacity 8 | 8 8 8 5 Final Carried 3 | . . 2 3 Class Distribution -------------------- 87% | Mutant 10% | Scavenger-Mutant Dominant Class ---------------- Mutant | -10/Materials Mutant | -9/Materials Mutant | -8/Materials Resources | -11 -10 -9 -8 ----------- Run | Yrd Mat Mat Mat Matter Collected 1484 | 188 195 1042 59 Remotely . | . . . . Salvage Created 2259 | 14 478 1650 117 Parts 145 | 3 28 112 2 Haulers Intercepted 1 | . . 1 . Recyclers Shooed 4 | . 1 3 . Parts Field Recycled . | . . . . Retrieved Matter . | . . . . Parts Self-Destructed . | . . . . Prevented . | . . . . Parts Restored . | . . . . Kills | -11 -10 -9 -8 ------- Run | Yrd Mat Mat Mat Combat Hostiles Destroyed 51 | . 12 37 2 Guns 48 | . 9 37 2 AOE 3 | . 3 . . Classes Destroyed 10 | 1 5 4 . Worker 3 | . 2 1 . Tunneler 1 | 1 . . . Hauler 1 | . . 1 . Recycler 4 | . 1 3 . Watcher 5 | . 2 3 . Swarmer 17 | . 6 11 . Grunt 26 | . 6 18 2 Brawler 1 | . . 1 . Duelist 1 | . . 1 . Sentry 6 | . . 6 . Best Kill Streak 11 | 1 9 11 2 Combat Bots Only 6 | . 5 6 2 Max Kills in Single Turn 3 | 1 3 2 1 Gunslinging 1 | . . 1 . Exploded 2 | . 2 . . Melee . | . . . . Uniques/NPCs Destroyed . | . . . . Combat | -11 -10 -9 -8 -------- Run | Yrd Mat Mat Mat Hostile Shots Fired 355 | . 77 183 95 Missed 95 | . 28 51 16 Hits 260 | . 49 132 79 Melee 1 | . . 1 . Projectile 259 | . 49 131 79 Critical Strikes 7 | . . 2 5 Damage Taken 3104 | . 506 1286 1312 Core 824 | . 81 189 554 Absorbed by Shields 143 | . . 143 . Core Remaining (%) 73 | 100 67 52 . Volleys Fired 173 | 2 52 103 16 Largest 3 | 2 2 2 3 Hottest 110 | 90 100 50 110 Shots Fired 323 | 4 89 199 31 Gun 317 | 4 89 199 25 Cannon 6 | . . . 6 Launcher . | . . . . Special . | . . . . Kinetic 232 | . 8 199 25 Thermal 60 | 2 52 . 6 Explosive . | . . . . Electromagnetic 31 | 2 29 . . Robot Hit Streak 11 | 1 10 11 4 Robot Miss Streak 6 | 2 6 5 4 Penetration Max . | . . . . Secondary Targets 11 | . 3 8 . Max Gunslinging Chain 1 | . 1 1 . Shots Hit Robots 182 | 1 49 118 14 Core Hits 89 | 1 25 56 7 Critical Kills . | . . . . Critical Parts Destroyed . | . . . . Critical Strikes 4 | . 4 . . Burn 2 | . 2 . . Corrupt 2 | . 2 . . Melee Attacks . | . . . . Impact . | . . . . Slashing . | . . . . Piercing . | . . . . Sneak Attacks . | . . . . Combat Hostiles . | . . . . Follow-up Attacks . | . . . . Damage Inflicted 3378 | 17 931 2127 303 Guns 3016 | 12 652 2122 230 Cannons 46 | . . . 46 Explosions 279 | . 279 . . Melee . | . . . . Ramming 37 | 5 . 5 27 Kinetic 2396 | . 44 2122 230 Thermal 700 | . 654 . 46 Explosive . | . . . . Electromagnetic 245 | 12 233 . . Impact . | . . . . Slashing . | . . . . Piercing . | . . . . Highest Corruption 2 | . 2 1 1 Average Corruption 1 | . 1 1 1 Corruption Purged . | . . . . Corruption Blocked . | . . . . Effects 17 | . 6 11 . Message Errors 3 | . 2 1 . Matter Fused 5 | . 1 4 . Heat Flow Errors 1 | . . 1 . Energy Discharges 2 | . . 2 . Parts Rejected 1 | . 1 . . Data Loss (minor) 2 | . 1 1 . Misfires 2 | . . 2 . Alerts 1 | . 1 . . Overload Shots . | . . . . Overflow Damage . | . . . . Projectiles . | . . . . Explosions . | . . . . Melee . | . . . . Knockbacks . | . . . . Impact . | . . . . Kinetic . | . . . . Secondary . | . . . . Self-Inflicted Damage 12 | . . . 12 Shots . | . . . . Rammed 9 | . . 1 8 Targets Rammed 13 | 2 . 3 8 Kicked 4 | 2 . 2 . Crushed . | . . . . Highest Temperature 501 | 60 328 260 501 Average Temperature 93 | 30 99 39 303 Received Heat Transfer 1353 | . 177 420 756 Effects 10 | . 3 . 7 Shutdowns 2 | . . . 2 Energy Bleed 1 | . 1 . . Interference 4 | . 2 . 2 Short Circuit 2 | . . . 2 Damage (core) 1 | . . . 1 Siege Activations . | . . . . Martial Activations . | . . . . Shielding Activations . | . . . . Robots Disrupted . | . . . . Combat Hostiles . | . . . . Robots Corrupted . | . . . . Combat Hostiles . | . . . . Parts Fried 1 | . 1 . . Impact Corruptions . | . . . . Robots Melted . | . . . . Combat Hostiles . | . . . . Parts Melted 4 | . 4 . . Heat Transferred 1582 | . 1508 . 74 Parts Sabotaged . | . . . . Parts Stolen . | . . . . Parts Stripped . | . . . . Power Chain Reactions 5 | . 5 . . Alert | -11 -10 -9 -8 ------- Run | Yrd Mat Mat Mat Maximum Alert Level 2 | . . 2 . Low Security (%) 75 | 100 100 63 100 Level 1 22 | . . 33 . Level 2 2 | . . 3 . Level 3 . | . . . . Level 4 . | . . . . Level 5 . | . . . . High Security . | . . . . Max Security . | . . . . Peak Influence 430 | 5 165 430 196 Initial 177 | . . 36 177 Average 136 | . 87 159 158 Influence Increases 1403 | 5 337 1002 59 Destroy 0b10 Robot/C 1020 | . 240 740 40 Destroy 0b10 Robot/NC 70 | 5 25 40 . Destroy Leader 222 | . 54 158 10 Successful Hack 38 | . 12 18 8 Disable Machine 15 | . . 15 . Destroy Structure 8 | . 6 1 1 Lose Combat Pursuer 30 | . . 30 . Influence Decreases 1327 | 5 250 668 404 Entered New Map 295 | . . 51 244 Time Decay 812 | 5 220 517 70 Lost Part 220 | . 30 100 90 Squads Dispatched 7 | . 2 4 1 Investigation 5 | . 1 3 1 Extermination . | . . . . Reinforcement 2 | . 1 1 . Assault . | . . . . Garrison . | . . . . Intercept . | . . . . Searches Triggered . | . . . . Construction Impeded . | . . . . Haulers Reinforced . | . . . . Active Scanning Responses . | . . . . Cargo Convoy Interrupts . | . . . . Stealth | -11 -10 -9 -8 --------- Run | Yrd Mat Mat Mat Distress Signals 3 | . 1 1 1 Communications Jammed . | . . . . Distress Signals . | . . . . Times Spotted 70 | . 16 45 9 Peak Tracking Total 5 | . 4 5 5 Tactical Retreats 2 | . . 2 . Traps | -11 -10 -9 -8 ------- Run | Yrd Mat Mat Mat Traps Triggered 5 | . 3 2 . Indirectly . | . . . . Trap Hack Attempts . | . . . . Triggered . | . . . . Disarmed . | . . . . Reprogrammed . | . . . . Reused . | . . . . Traps Extracted . | . . . . Installed . | . . . . Triggered . | . . . . Machines | -11 -10 -9 -8 ---------- Run | Yrd Mat Mat Mat Machines Disabled 1 | . . 1 . Max in Single Turn 1 | . . 1 . Machines Repaired . | . . . . Machines Dismantled . | . . . . Machines Sabotaged . | . . . . Overloaded Fab Kills . | . . . . Hacking | -11 -10 -9 -8 --------- Run | Yrd Mat Mat Mat Machines Accessed 12 | . 2 9 1 Terminals 10 | . . 9 1 Fabricators . | . . . . Repair Stations 1 | . 1 . . Recycling Units 1 | . 1 . . Scanalyzers . | . . . . Garrison Access . | . . . . Total Hacks 37 | . 6 29 2 Successful 21 | . 1 19 1 Failed 15 | . 5 9 1 Catastrophic 2 | . 1 . 1 Database Lockouts 1 | . . 1 . Manual . | . . . . Terminals 31 | . . 29 2 Fabricators . | . . . . Repair Stations 4 | . 4 . . Recycling Units 2 | . 2 . . Scanalyzers . | . . . . Garrison Access . | . . . . Terminal Hacks 20 | . . 19 1 Record 14 | . . 13 1 Prototype ID Bank 2 | . . 2 . Emergency Access Points 1 | . . 1 . Alert Level 1 | . . 1 . Dispatch Records 1 | . . 1 . Recall Investigation 1 | . . 1 . Fabricator Hacks . | . . . . Repair Station Hacks 1 | . 1 . . Scan Component 1 | . 1 . . Recycling Unit Hacks . | . . . . Scanalyzer . | . . . . Garrison Access Hacks . | . . . . Unauthorized Hacks . | . . . . Terminals . | . . . . Fabricators . | . . . . Repair Stations . | . . . . Recycling Units . | . . . . Scanalyzers . | . . . . Garrison Access . | . . . . Data Cores Recovered . | . . . . Used . | . . . . Hacking Detections 11 | . 2 8 1 Full Trace Events 6 | . 1 4 1 Feedback Events . | . . . . Feedback Blocked . | . . . . Robot Schematics Acquired . | . . . . Robots Built . | . . . . Authchips . | . . . . Time . | . . . . Total Robot Build Rating . | . . . . Part Schematics Acquired . | . . . . Parts Built . | . . . . Authchips . | . . . . Time . | . . . . Total Part Build Rating . | . . . . Part Studies Acquired . | . . . . Parts Repaired . | . . . . Time . | . . . . Parts Recycled . | . . . . Recycled Matter . | . . . . Retrieved Matter . | . . . . Retrieved Components . | . . . . Parts Scanalyzed . | . . . . Part Schematics Acquired . | . . . . Parts Damaged . | . . . . Bothacking | -11 -10 -9 -8 ------------ Run | Yrd Mat Mat Mat Used RIF Installer . | . . . . Robots Hacked . | . . . . Non-combat . | . . . . Combat . | . . . . Robot Hacks Applied . | . . . . Relay Couplers Released . | . . . . Fabnet Peak Effective % . | . . . . Robots Rewired . | . . . . Allies Hacked . | . . . . Hacks Repelled . | . . . . Allies | -11 -10 -9 -8 -------- Run | Yrd Mat Mat Mat Total Allies . | . . . . Largest Group . | . . . . Highest-Rated Group . | . . . . Highest-Rated Ally . | . . . . Total Orders . | . . . . Ally Attacks . | . . . . Total Damage . | . . . . Kills . | . . . . Allies Corrupted . | . . . . Allies Melted . | . . . . Intel | -11 -10 -9 -8 ------- Run | Yrd Mat Mat Mat Active Infowar (turns) 2188 | 38 514 1529 107 Optics 1 | . 1 . . Terrain 2188 | 38 514 1529 107 Robot Analysis Total . | . . . . Derelict Logs Recovered . | . . . . Drone Launches . | . . . . Drone Recoveries . | . . . . Exploration | -11 -10 -9 -8 ------------- Run | Yrd Mat Mat Mat Turns Passed 2558 | 98 588 1728 144 Spaces Moved 1480 | 65 418 943 54 Core 25 | 3 2 9 11 Treads 381 | . . 338 43 Legs 296 | 62 136 98 . Wheels 351 | . . 351 . Hover 427 | . 280 147 . Flight . | . . . . Fastest Speed 50 | 50 56 60 50 Average Speed 134 | 116 101 148 172 Slowest Speed 450 | 120 400 450 400 Overloaded Moves . | . . . . Propulsion Burnouts . | . . . . Robots Hopped . | . . . . Potential Cave-ins . | . . . . Cave-ins Triggered . | . . . . Exploration Rate (%) 25 | 4 42 49 5 Regions Visited 3 Branch Regions . Pre-discovered Areas . | . . . . Known Exits Taken . | . . . . Unknown Exits Taken 3 | 1 1 1 . Scrap Searched . | . . . . Spaces Dug . | . . . . Terrain Destroyed 5 | . 4 . 1 Melee . | . . . . Projectile 1 | . . . 1 AOE 4 | . 4 . . Terrain Rammed . | . . . . Walls Destroyed . | . . . . Machines Disabled . | . . . . Actions | -11 -10 -9 -8 --------- Run | Yrd Mat Mat Mat Total 1777 | 82 499 1114 82 Wait 1 | . . 1 . Move 1477 | 64 417 942 54 Hop . | . . . . Pick Up 49 | 7 11 29 2 Fast Attach . | . . . . Attach 42 | 7 11 23 1 Detach 1 | . 1 . . Swap 5 | . . 4 1 Drop 16 | . 7 9 . Fire 173 | 2 52 103 16 Melee . | . . . . Ram 8 | . . . 8 Kick 4 | 2 . 2 . Crush 1 | . . 1 . Escape Stasis . | . . . . Rewire . | . . . . Trap . | . . . . Miscellaneous . | . . . . Route ------- -11/Scrapyard -10/Materials (discovered 2 exits: *Mat / [*Min]) -9/Materials (discovered 3 exits: *Mat / [*Min] / [*Sto]) -8/Materials History --------- Turn | Location | Event 5 | -11/Scrapyard | Discovered new exit (range 15) 99 | -11/Scrapyard | Entered Materials 310 | -10/Materials | Build established: Mutant 407 | -10/Materials | Discovered new exit (range 8) 622 | -10/Materials | Discovered new exit (range 15) 687 | -10/Materials | Entered another Materials area 687 | -9/Materials | Evolved 2 slots: Utility x2 1148 | -9/Materials | Discovered new exit (range 14) 1333 | -9/Materials | Lost 3 parts (1n2u) 1584 | -9/Materials | Discovered new exit (range 8) 1770 | -9/Materials | Central database locked down 2255 | -9/Materials | Discovered new exit (range 16) 2415 | -9/Materials | Entered another Materials area 2415 | -8/Materials | Evolved 2 slots: Weapon x2 2550 | -8/Materials | Core integrity fell below 50% 2556 | -8/Materials | Core integrity fell below 20% 2559 | -8/Materials | Destroyed by G-47 Trooper with Particle Gun Last Messages --------------- 02525_ Lgt. Armor Plating destroyed. 02526_ Broken Lgt. Treads destroyed. 02527_ Lgt. Treads destroyed. 02530_ Critical hit (Burn: +37). 02537_ Broken Minigun destroyed. 02537_ Critical hit (Burn: +37). 02541_ Deuterium Engine destroyed. 02543_ Slammed into G-47 Trooper. 02546_ Imp. Terrain Scanner destroyed. 02549_ Ion Cannon destroyed. 02550_ Sml. Storage Unit destroyed. 02550_ Slammed into Y-45 Defender. 02552_ Destabilizing: System corrupted (+1). 02554_ Slammed into Y-45 Defender. 02555_ Acquired 57 matter. 02556_ Acquired 2 matter. 02556_ Slammed into G-47 Trooper. 02556_ Destabilizing: Core damaged (-11). 02557_ Critical hit (Burn: +37). 02557_ Slammed into G-47 Trooper. Map ----- +----------------------------------------------------+ | ??????????????????????????????????????????? | | ??????????????????????????????????????????? | | ??????????????????????????????????????????? | | ??????????????????????????????????????????? | | ??????????????????????????????????????????? | | ??????????????????????????????????????????? | | ??????????????????????????????????????????? | | ??????????????????????????????????????????? | | ??????????????????????????????????????????? | | ??????????????????????????????????????????? | | ??????????????????????????????????????????? | | ??????????????????????????????????????????? | | ????????#?????????????????????????????????? | | ??????????????????????????????????????????? | | ??????????????????????????????????????????? | | ???????????#?#????????????????????????????? | | ???????????##?????????????????????????????? | | ????#???????????? ????????????????????????? | | ????????##????????????????????????????????? | | ??????????????????????????????????????????? | | ???????????????""?????????#???????????????? | | ?????????????????? ?????? #???????????????? | | ??#????#######???????? ? #??####?????????? | | ????#??# ########### # #?????????? | | ???????# o % #?????????? | | ???????# T @% Y #?????????? | | ???????# g gg u #?????????? | | ???????# ! ############## #?????????? | | ???????## ########??#?????? ##?????????? | | ######### # #??????????????????????? | | # # # """ #??????????????????????? | | # """"" + + """ #??????????????????????? | | # ""T"" # # """ #?? ???????????????????? | | # # # #??????????????????????? | | ######### # #??????????????????????? | | ???## ########??????????????????????? | | ????# #?????????????????????????????? | | ????# #?????????????????????????????? | | #???#########?#???????????????????????????? | | ????????????#??????#??????????????????????? | | ???#??#???????????????????????????????????? | | ??????????????????????????????????????????? | | ??????????????????????????????????????????? | | ??????????????????????????????????????????? | | ??????##???????????"??????????????????????? | | ??????????#???????????????????????????????? | | ??????????????????????????????????????????? | | ??????????????????????????????????????????? | | ??????????????????????????????????????????? | | ??????????????????????????????????????????? | +----------------------------------------------------+ Best States ------------- Heat Dissipation 31 Energy Generation 14 Energy Capacity 275 Matter Stores 300 Matter Capacity 300 Sight Range 16 Terrain Scan Range 16 Terrain Scan Density 10 Armor Coverage 225 Evasion (%) 55 Recoil Reduction 2 Item Schematics ----------------- None Robot Schematics ------------------ None Fabricated ------------ Nothing Repaired ---------- Nothing Studied --------- None Alien Tech Used ----------------- None Achievements -------------- Ghost 'Em Librarian Loot Pinata Novice Programmer Organ Harvest Storm Trooper There's More Where That Came From Well Done Challenges ------------ None Game ------ Seed ScrapoidBottomlessSlamshotty Manual? 0 Play Time 00:28:43 Cumulative 1.0 hours Start 2026.09.15 @ 04:02:19 End 2026.09.15 @ 04:29:44 Sessions 1 Manual Loads 0 Difficulty Rogue Special Mode None Game No. 4 Rogue 4 Adventurer 0 Explorer 0 Win Type - Total 0 Types 0/0/0/0/0/0/0/0/0/0 Lore% 1 Gallery% 3 Achievement% 3 Wizard Run 0 Options --------- Layout 1 ASCII 0 Keyboard 0 Movement Arrows Keybinds 0 Fullscreen 2 Font 32/SmallcapsGlow Map View 50x35 Zoom Use 0% Tactical HUD 1 Map Filters NONE Filters NONE Steam 1 RUN: 3404cb9e-6231-4491-a03a-34bfbf4ec2ff